fUST/lending_fUST_20260430
["ID","MTS","AMOUNT","RATE_DAILY","PERIOD"]
[421368449,1777509041000,-151.5,0.00019452,2]
[421368459,1777509041000,-154.938,0.0001964,2]
[421368457,1777509041000,-234.5010633,0.00019549,2]
[421368461,1777509041000,-151.0,0.000197,2]
[421368460,1777509041000,-68964.0,0.000197,2]
[421368456,1777509041000,-773.2413689,0.00019543,2]
[421368467,1777509041000,-151.0,0.000197,2]
[421368464,1777509041000,-151.0,0.000197,2]
[421368463,1777509041000,-151.0,0.000197,2]
[421368473,1777509041000,-151.0,0.000197,2]
[421368465,1777509041000,-151.0,0.000197,2]
[421368466,1777509041000,-151.0,0.000197,2]
[421368469,1777509041000,-151.0,0.000197,2]
[421368475,1777509041000,-151.0,0.000197,2]
[421368474,1777509041000,-151.0,0.000197,2]
[421368470,1777509041000,-151.0,0.000197,2]
[421368468,1777509041000,-151.0,0.000197,2]
[421368472,1777509041000,-151.0,0.000197,2]
[421368442,1777509041000,-500.0,0.00019273,2]
[421368462,1777509041000,-206.943379,0.000197,2]
[421368443,1777509041000,-153.13244048,0.00019304,2]
[421368424,1777509041000,-151.0,0.00019,2]
[421368447,1777509041000,-61981.07662508,0.00019404,2]
[421368471,1777509041000,-151.0,0.000197,2]
[421368420,1777509041000,-151.0,0.00019,2]
[421368417,1777509041000,-151.0,0.00019,2]
[421368419,1777509041000,-151.0,0.00019,2]
[421368422,1777509041000,-1000.0,0.00019,2]
[421368421,1777509041000,-344058.80597854,0.00019,2]
[421368434,1777509041000,-262.489751,0.00019,2]
[421368435,1777509041000,-151.0,0.00019,2]
[421368436,1777509041000,-557.5788265,0.00019048,2]
[421368433,1777509041000,-151.0,0.00019,2]
[421368428,1777509041000,-151.0,0.00019,2]
[421368431,1777509041000,-151.0,0.00019,2]
[421368429,1777509041000,-190.504,0.00019,2]
[421368423,1777509041000,-151.0,0.00019,2]
[421368432,1777509041000,-262.489751,0.00019,2]
[421368430,1777509041000,-151.0,0.00019,2]
[421368426,1777509041000,-151.0,0.00019,2]
[421368427,1777509041000,-151.0,0.00019,2]
[421368425,1777509041000,-151.0,0.00019,2]
[421368438,1777509041000,-599.60298507,0.00019158,2]
[421368437,1777509041000,-578.20924308,0.00019103,2]
[421368446,1777509041000,-482296.22044437,0.00019404,2]
[421368439,1777509041000,-1158.05,0.000192,2]
[421368440,1777509041000,-621.78829552,0.00019213,2]
[421368441,1777509041000,-644.79446246,0.00019268,2]
[421368448,1777509041000,-719.04747942,0.00019433,2]
[421368444,1777509041000,-668.65185757,0.00019323,2]
[421368445,1777509041000,-693.3919763,0.00019378,2]
[421368477,1777509041000,-151.0,0.000197,2]
[421368418,1777509041000,-151.0,0.00019,2]
[421368476,1777509041000,-294.507788,0.000197,2]
[421368508,1777509041000,-151.68053369,0.000199,2]
[421368507,1777509041000,-151.0,0.000199,2]
[421368509,1777509041000,-502.2547934,0.00019973,2]
[421368512,1777509041000,-500.0,0.00019973,2]
[421368506,1777509041000,-151.0,0.000199,2]
[421368521,1777509041000,-151.0,0.00019999,2]
[421368517,1777509041000,-151.0,0.00019999,2]
[421368516,1777509041000,-151.0,0.00019999,2]
[421368520,1777509041000,-151.0,0.00019999,2]
[421368518,1777509041000,-151.0,0.00019999,2]
[421368524,1777509041000,-1510.03735929,0.0002,2]
[421368523,1777509041000,-76286.80500472,0.0002,2]
[421368531,1777509041000,-1645.82774642,0.0002,20]
[421368528,1777509041000,-150932.15329768,0.0002,2]
[421368530,1777509041000,-8007.11182598,0.0002,2]
[421368522,1777509041000,-151.0,0.00019999,2]
[421368526,1777509041000,-227.55,0.0002,5]
[421368532,1777509041000,-200.0,0.0002,10]
[421368525,1777509041000,-113071.62082099,0.0002,2]
[421368527,1777509041000,-15329.07780816,0.0002,20]
[421368529,1777509041000,-27500.0,0.0002,7]
[421368535,1777509041000,-2547.96456536,0.0002,4]
[421368534,1777509041000,-81341.56322889,0.0002,2]
[421368533,1777509041000,-151.0,0.0002,5]
[421368537,1777509041000,-95659.52036477,0.0002,7]
[421368536,1777509041000,-500.0,0.0002,2]
[421368487,1777509041000,-300.0,0.00019725,2]
[421368513,1777509041000,-500.0,0.00019973,2]
[421368511,1777509041000,-500.0,0.00019973,2]
[421368519,1777509041000,-151.0,0.00019999,2]
[421368505,1777509041000,-151.0,0.000199,2]
[421368484,1777509041000,-151.0,0.000197,2]
[421368483,1777509041000,-262.489751,0.000197,2]
[421368488,1777509041000,-650.71,0.00019799,2]
[421368479,1777509041000,-151.0,0.000197,2]
[421368510,1777509041000,-500.0,0.00019973,2]
[421368478,1777509041000,-151.0,0.000197,2]
[421368480,1777509041000,-151.0,0.000197,2]
[421368482,1777509041000,-151.0,0.000197,2]
[421368481,1777509041000,-151.0,0.000197,2]
[421368486,1777509041000,-169.5,0.00019725,2]
[421368489,1777509041000,-650.71,0.00019799,2]
[421368491,1777509041000,-650.71,0.00019799,2]
[421368492,1777509041000,-650.72840149,0.00019799,2]
[421368493,1777509041000,-3672.29185987,0.000198,3]
[421368485,1777509041000,-262.489751,0.000197,2]
[421368494,1777509041000,-246.62361939,0.000198,2]
[421368503,1777509041000,-500.0,0.000199,2]
[421368514,1777509041000,-155.0,0.00019999,2]
[421368504,1777509041000,-151.0,0.000199,2]
[421368498,1777509041000,-151.0,0.00019899,2]
[421368495,1777509041000,-511.10970913,0.00019878,2]
[421368497,1777509041000,-500.0,0.00019899,2]
[421368515,1777509041000,-151.0,0.00019999,2]
[421368502,1777509041000,-151.0,0.00019899,2]
[421368501,1777509041000,-151.0,0.00019899,2]
[421368500,1777509041000,-151.0,0.00019899,2]
[421368499,1777509041000,-151.0,0.00019899,2]
[421368496,1777509041000,-3372.08093742,0.0001988,2]
[421368490,1777509041000,-650.71,0.00019799,2]
[421368538,1777509042000,-601.0,0.0002,2]
[421368539,1777509042000,-254465.00565538,0.0002,20]
[421368569,1777509043000,-224.69753518,0.00018575,2]
[421368570,1777509043000,-3583.91997012,0.00018998,2]
[421368576,1777509047000,-2645.43678463,0.00018998,2]
[421368581,1777509096000,-1035.51870942,0.00012,2]
[421368582,1777509210000,200.0,0.00019759,120]
[421368583,1777509330000,200.0,0.00020735,120]
[421368588,1777509508000,414611.49,0.00021917,120]
[421368702,1777510247000,-2150.738,0.00018967,2]
[421368687,1777510247000,-152.04243849,0.00013499,2]
[421368685,1777510247000,-192.91372704,0.00013399,2]
[421368686,1777510247000,-586.0,0.00013399,2]
[421368688,1777510247000,-12.69681597,0.00013699,2]
[421368689,1777510247000,-987.30318403,0.00013699,2]
[421368690,1777510247000,-179.41007742,0.00015499,2]
[421368692,1777510247000,-206.77771634,0.00017499,2]
[421368693,1777510247000,-160.0,0.00018561,2]
[421368694,1777510247000,-300.0,0.00018797,2]
[421368691,1777510247000,-1000.0,0.00017042,2]
[421368703,1777510247000,-500.0,0.00018991,2]
[421368709,1777510247000,-500.0,0.00018997,2]
[421368697,1777510247000,-500.0,0.00018798,2]
[421368713,1777510247000,-226.31804977,0.00018997,2]
[421368712,1777510247000,-500.0,0.00018997,2]
[421368711,1777510247000,-500.0,0.00018997,2]
[421368710,1777510247000,-500.0,0.00018997,2]
[421368708,1777510247000,-500.0,0.00018997,2]
[421368705,1777510247000,-500.0,0.00018994,2]
[421368700,1777510247000,-862.33614726,0.00018866,2]
[421368696,1777510247000,-500.0,0.00018798,2]
[421368701,1777510247000,-537.6845,0.00018967,2]
[421368698,1777510247000,-500.0,0.00018798,2]
[421368695,1777510247000,-500.0,0.00018798,2]
[421368707,1777510247000,-500.0,0.00018994,2]
[421368763,1777510248000,-80.73957562,0.00018997,2]
[421368777,1777510248000,-1566.83023991,0.00018997,2]
[421368779,1777510248000,-1566.83023991,0.00018997,2]
[421368770,1777510248000,-157.37758238,0.00018997,2]
[421368783,1777510248000,-1566.83023991,0.00018997,2]
[421368765,1777510248000,-1566.83023991,0.00018997,2]
[421368771,1777510248000,-1566.83023991,0.00018997,2]
[421368767,1777510248000,-1566.83023991,0.00018997,2]
[421368775,1777510248000,-1566.83023991,0.00018997,2]
[421368787,1777510248000,-1566.83023991,0.00018997,2]
[421368773,1777510248000,-1566.83023991,0.00018997,2]
[421368789,1777510248000,-1566.83023991,0.00018997,2]
[421368790,1777510248000,-1397.34977023,0.00018997,2]
[421368781,1777510248000,-1566.83023991,0.00018997,2]
[421368785,1777510248000,-1566.83023991,0.00018997,2]
[421368924,1777510526000,10005.44,0.00021918,120]
[421368925,1777510611000,290.80077087,0.00021709,120]
[421368929,1777510692000,2655.99837474,0.00021918,120]
[421368942,1777511289000,3673.2,0.00011,30]
[421368971,1777511433000,-301.86627981,0.00013699,2]
[421368988,1777511441000,-150.0,0.00014311,2]
[421368989,1777511441000,-39.46513483,0.00016306,2]
[421368987,1777511441000,-698.13372019,0.00013699,2]
[421369077,1777511446000,-500.0,0.00018496,2]
[421369065,1777511446000,-411.65629959,0.00018496,2]
[421369069,1777511446000,-500.0,0.00018496,2]
[421369067,1777511446000,-500.0,0.00018496,2]
[421369063,1777511446000,-500.0,0.00018496,2]
[421369061,1777511446000,-500.0,0.00018496,2]
[421369075,1777511446000,-500.0,0.00018496,2]
[421369073,1777511446000,-500.0,0.00018496,2]
[421369071,1777511446000,-500.0,0.00018496,2]
[421369059,1777511446000,-300.0,0.00018495,2]
[421369057,1777511446000,-300.0,0.00018495,2]
[421369053,1777511446000,-1200.0,0.00018494,2]
[421369055,1777511446000,-300.0,0.00018495,2]
[421369049,1777511446000,-254.97994731,0.00018398,2]
[421369043,1777511446000,-204.0,0.00018311,2]
[421369036,1777511446000,-1000.0,0.00017474,2]
[421369045,1777511446000,-86.73234553,0.00018397,2]
[421369041,1777511446000,-455.7686757,0.00018306,2]
[421369039,1777511446000,-456.9626887,0.00018306,2]
[421369037,1777511446000,-151.0,0.00018306,2]
[421369034,1777511446000,-177.0,0.00016311,2]
[421369032,1777511446000,-122.37486517,0.00016306,2]
[421369079,1777511446000,-500.0,0.00018496,2]
[421369051,1777511446000,-250.93336826,0.00018398,2]
[421369081,1777511446000,-500.0,0.00018496,2]
[421369048,1777511446000,-667.81178334,0.00018397,2]
[421369084,1777511446000,-516.92524257,0.00018496,2]
[421369082,1777511446000,-500.0,0.00018496,2]
[421369130,1777511446000,-500.0,0.00018496,2]
[421369127,1777511446000,-500.0,0.00018496,2]
[421369115,1777511446000,-310.15193598,0.00018496,2]
[421369114,1777511446000,-104.10646326,0.00018496,2]
[421369117,1777511446000,-189.84806402,0.00018496,2]
[421369111,1777511446000,-395.89353674,0.00018496,2]
[421369125,1777511446000,-500.0,0.00018496,2]
[421369124,1777511446000,-368.65995028,0.00018496,2]
[421369121,1777511446000,-500.0,0.00018496,2]
[421369119,1777511446000,-500.0,0.00018496,2]
[421369132,1777511446000,-984.38542267,0.00018497,2]
[421369109,1777511446000,-500.0,0.00018496,2]
[421369106,1777511446000,-500.0,0.00018496,2]
[421369108,1777511446000,-500.0,0.00018496,2]
[421369090,1777511446000,-500.0,0.00018496,2]
[421369086,1777511446000,-500.0,0.00018496,2]
[421369095,1777511446000,-500.0,0.00018496,2]
[421369099,1777511446000,-500.0,0.00018496,2]
[421369088,1777511446000,-500.0,0.00018496,2]
[421369092,1777511446000,-500.0,0.00018496,2]
[421369101,1777511446000,-288.524677,0.00018496,2]
[421369097,1777511446000,-500.0,0.00018496,2]
[421369103,1777511446000,-500.0,0.00018496,2]
[421369093,1777511446000,-420.44270342,0.00018496,2]
[421369153,1777511447000,-1613.91195355,0.00018497,2]
[421369152,1777511447000,-1613.91195355,0.00018497,2]
[421369156,1777511447000,-1713.22961223,0.00018497,2]
[421369155,1777511447000,-1713.22961223,0.00018497,2]
[421369159,1777511447000,-1713.22961223,0.00018497,2]
[421369158,1777511447000,-1713.22961223,0.00018497,2]
[421369157,1777511447000,-1713.22961223,0.00018497,2]
[421369160,1777511447000,-1713.22961223,0.00018497,2]
[421369162,1777511447000,-1713.22961223,0.00018497,2]
[421369163,1777511447000,-1713.22961223,0.00018497,2]
[421369154,1777511447000,-1713.22961223,0.00018497,2]
[421369151,1777511447000,-1613.91195355,0.00018497,2]
[421369139,1777511447000,-1613.91195355,0.00018497,2]
[421369149,1777511447000,-1613.91195355,0.00018497,2]
[421369146,1777511447000,-1613.91195355,0.00018497,2]
[421369148,1777511447000,-1613.91195355,0.00018497,2]
[421369147,1777511447000,-1613.91195355,0.00018497,2]
[421369145,1777511447000,-1613.91195355,0.00018497,2]
[421369142,1777511447000,-245.16326475,0.00018497,2]
[421369140,1777511447000,-1613.91195355,0.00018497,2]
[421369144,1777511447000,-1613.91195355,0.00018497,2]
[421369143,1777511447000,-214.94033778,0.00018497,2]
[421369141,1777511447000,-1613.91195355,0.00018497,2]
[421369138,1777511447000,-629.52653088,0.00018497,2]
[421369161,1777511447000,-1713.22961223,0.00018497,2]
[421369150,1777511447000,-1613.91195355,0.00018497,2]
[421369164,1777511447000,-1713.22961223,0.00018497,2]
[421369173,1777511447000,-500.0,0.00018597,3]
[421369165,1777511447000,-1713.22961223,0.00018497,2]
[421369191,1777511447000,-51411.13927407,0.00018998,2]
[421369192,1777511447000,-2404.99956709,0.00018998,2]
[421369190,1777511447000,-500.0,0.00018997,11]
[421369189,1777511447000,-500.0,0.00018997,10]
[421369185,1777511447000,-2150.738,0.00018967,2]
[421369187,1777511447000,-498.80000023,0.00018997,2]
[421369186,1777511447000,-500.0,0.00018997,2]
[421369182,1777511447000,-500.0,0.00018598,8]
[421369181,1777511447000,-500.0,0.00018598,7]
[421369166,1777511447000,-2146.7286202,0.00018497,2]
[421369184,1777511447000,-264.16679955,0.00018967,2]
[421369179,1777511447000,-500.0,0.00018598,5]
[421369180,1777511447000,-500.0,0.00018598,6]
[421369177,1777511447000,-500.0,0.00018598,2]
[421369188,1777511447000,-500.0,0.00018997,9]
[421369169,1777511447000,-228.443128,0.00018596,2]
[421369168,1777511447000,-500.0,0.00018596,2]
[421369183,1777511447000,-500.0,0.00018698,2]
[421369171,1777511447000,-500.0,0.00018597,2]
[421369175,1777511447000,-500.0,0.00018598,2]
[421369167,1777511447000,-2146.7286202,0.00018497,2]
[421369172,1777511447000,-500.0,0.00018597,2]
[421369174,1777511447000,-500.0,0.00018597,4]
[421369176,1777511447000,-500.0,0.00018598,2]
[421369178,1777511447000,-500.0,0.00018598,2]
[421369170,1777511447000,-500.0,0.00018597,2]
[421369270,1777512639000,-1000.0,0.00017394,2]
[421369265,1777512639000,-345.63,0.0001204,2]
[421369266,1777512639000,-60064.53115656,0.000121,5]
[421369269,1777512639000,-177.0,0.00016286,2]
[421369268,1777512639000,-150.0,0.00014286,2]
[421369271,1777512639000,-204.0,0.00018286,2]
[421369267,1777512639000,-1000.0,0.00013699,2]
[421369273,1777512639000,-151.0,0.00018287,2]
[421369280,1777512639000,-500.0,0.00018896,2]
[421369274,1777512639000,-558.66702267,0.00018496,2]
[421369276,1777512639000,-1786.3159118,0.00018527,2]
[421369279,1777512639000,-309.83607522,0.00018896,2]
[421369277,1777512639000,-660.2261127,0.00018797,2]
[421369278,1777512639000,-268.93807816,0.00018896,2]
[421369275,1777512639000,-1710.4996325,0.00018527,2]
[421369282,1777512639000,-72055.82192133,0.00018898,2]
[421369281,1777512639000,-540.9622167,0.00018896,2]
[421369272,1777512639000,-456.0406255,0.00018287,2]
[421369350,1777512646000,-1410.0,0.00019703,2]
[421369346,1777512646000,-456.0406255,0.00019139,2]
[421369347,1777512646000,-456.0406255,0.00019139,2]
[421369354,1777512646000,-442.0,0.00019703,2]
[421369344,1777512646000,-783.0,0.00019,2]
[421369334,1777512646000,-500.0,0.00019,7]
[421369332,1777512646000,-500.0,0.00019,7]
[421369339,1777512646000,-159.0,0.00019,2]
[421369330,1777512646000,-45901.06579153,0.00018998,2]
[421369341,1777512646000,-159.0,0.00019,2]
[421369352,1777512646000,-645.0,0.00019703,2]
[421369336,1777512646000,-166.18,0.00019,7]
[421369342,1777512646000,-159.0,0.00019,3]
[421369326,1777512646000,-1407.72002831,0.00018798,2]
[421369328,1777512646000,-8797.9224741,0.00018898,2]
[421369348,1777512646000,-626.62288739,0.000196,2]
[421369337,1777512646000,-159.0,0.00019,3]
[421369355,1777512646000,-157.557,0.0001972,2]
[421369362,1777512646000,-159.0,0.000198,6]
[421369365,1777512646000,-159.0,0.000198,4]
[421369363,1777512646000,-159.0,0.000198,5]
[421369364,1777512646000,-158.43922893,0.000198,9]
[421369360,1777512646000,-2710.5727388,0.00019786,2]
[421369358,1777512646000,-151.5,0.00019726,20]
[421369366,1777512646000,-110057.17432791,0.000199,2]
[421369361,1777512646000,-159.0,0.000198,7]
[421369356,1777512646000,-151.5,0.00019726,20]
[421369357,1777512646000,-151.5,0.00019726,20]
[421369353,1777512646000,-302.489,0.00019703,2]
[421369349,1777512646000,-660.2261127,0.00019652,2]
[421369345,1777512646000,-176.0,0.00019,2]
[421369351,1777512646000,-2212.0,0.00019703,2]
[421369359,1777512646000,-221.1372934,0.00019726,20]
[421369343,1777512646000,-423.0,0.00019,2]
[421369367,1777512676000,-844.30990458,8.5e-05,7]
[421369368,1777512719000,-500.0,0.00012099,2]
[421369373,1777513059000,10000.0,0.00021918,120]
[421369419,1777513838000,-150.0,0.00011443,2]
[421369417,1777513838000,-221.18946892,0.00011443,2]
[421369420,1777513838000,-177.0,0.00013443,2]
[421369411,1777513838000,-359.81053108,0.00011443,2]
[421369409,1777513838000,-362.16793648,0.00011211,10]
[421369422,1777513838000,-1000.0,0.00013699,2]
[421369437,1777513838000,-2101.77656852,0.00018989,2]
[421369424,1777513838000,-204.0,0.00015443,2]
[421369431,1777513838000,-81.21565609,0.00018989,2]
[421369426,1777513838000,-1000.0,0.00016892,2]
[421369438,1777513838000,-1200.0,0.00018997,2]
[421369430,1777513838000,-513.39119079,0.00017825,2]
[421369428,1777513838000,-231.0,0.00017443,2]
[421369453,1777513838000,-158.0,0.00019,2]
[421369442,1777513838000,-300.0,0.00018998,2]
[421369467,1777513838000,-67656.75405849,0.000195,2]
[421369465,1777513838000,-258.0,0.00019443,2]
[421369440,1777513838000,-300.0,0.00018998,2]
[421369459,1777513838000,-151.0,0.00019114,2]
[421369461,1777513838000,-600.0,0.00019273,2]
[421369457,1777513838000,-151.0,0.00019114,2]
[421369463,1777513838000,-553.75239909,0.000194,2]
[421369455,1777513838000,-3146.0,0.00019,2]
[421369450,1777513838000,-151.10050877,0.00019,2]
[421369451,1777513838000,-499.36816119,0.00019,30]
[421369446,1777513838000,-300.0,0.00018998,2]
[421369444,1777513838000,-300.0,0.00018998,2]
[421369448,1777513838000,-3828.0,0.00019,2]
[421369888,1777513843000,-1074.91166387,0.000195,2]
[421369893,1777513843000,-4479.15198489,0.000195,2]
[421369898,1777513843000,-222.074579,0.000195,2]
[421369902,1777513843000,-151.0,0.000195,2]
[421369904,1777513843000,-151.0,0.000195,2]
[421369890,1777513843000,-2535.75258541,0.000195,2]
[421369896,1777513843000,-24254.30144486,0.000195,2]
[421369906,1777513843000,-553.75239905,0.00019525,2]
[421369900,1777513843000,-151.0,0.000195,2]
[421369908,1777513843000,-420.28362774,0.000196,2]
[421369927,1777513843000,-553.75239905,0.000199,2]
[421369929,1777513843000,-373.11907542,0.000199,2]
[421369922,1777513843000,-553.75239905,0.00019775,2]
[421369925,1777513843000,-500.0,0.000199,2]
[421369910,1777513843000,-553.75239905,0.0001965,2]
[421369916,1777513843000,-366.00253962,0.00019752,2]
[421369914,1777513843000,-236.808,0.00019752,2]
[421369912,1777513843000,-2217.048,0.00019752,2]
[421369918,1777513843000,-79.70046038,0.00019752,2]
[421370301,1777513846000,-14194.26908977,0.000199,2]
[421370299,1777513846000,-280.18908517,0.000196,2]
[421370529,1777515032000,-300.0,0.00019609,2]
[421370532,1777515032000,-595.60216083,0.00019609,2]
[421370543,1777515032000,-223.03973507,0.00019726,20]
[421370530,1777515032000,-604.39783917,0.00019609,2]
[421370535,1777515032000,-1047.44518923,0.0001961,2]
[421370541,1777515032000,-202.05389099,0.00019649,2]
[421370546,1777515032000,-279.96026493,0.00019726,20]
[421370557,1777515032000,-503.0,0.00019726,20]
[421370528,1777515032000,-151.0,0.00019603,5]
[421370525,1777515032000,-1047.44518923,0.00019021,2]
[421370539,1777515032000,-28.94610901,0.00019649,2]
[421370522,1777515032000,-325.3967882,0.00018292,2]
[421370526,1777515032000,-459.802882,0.00019175,2]
[421370524,1777515032000,-1608.74746965,0.00018714,2]
[421370521,1777515032000,-204.0,0.00017649,2]
[421370523,1777515032000,-1000.0,0.00018551,2]
[421370556,1777515032000,-503.0,0.00019726,20]
[421370520,1777515032000,-177.0,0.00015649,2]
[421370519,1777515032000,-1000.0,0.00013699,2]
[421370518,1777515032000,-150.0,0.00013649,2]
[421370517,1777515032000,-372.46549501,0.00013599,2]
[421370516,1777515032000,-241.53450499,0.00013599,2]
[421370515,1777515032000,-258.46549501,0.00013549,2]
[421370537,1777515032000,-1047.44518923,0.0001961,2]
[421370558,1777515032000,-503.0,0.00019726,20]
[421370527,1777515032000,-510.82858132,0.00019498,2]
[421370548,1777515032000,-48.03031054,0.00019726,20]
[421370578,1777515032000,-183.75892857,0.00019809,2]
[421370577,1777515032000,-151.0,0.00019802,5]
[421370559,1777515032000,-503.0,0.00019726,20]
[421370576,1777515032000,-442.0,0.00019752,2]
[421370574,1777515032000,-507.27858519,0.00019726,20]
[421370575,1777515032000,-188.16,0.00019752,2]
[421370573,1777515032000,-503.0,0.00019726,20]
[421370568,1777515032000,-101.15075318,0.00019726,20]
[421370566,1777515032000,-503.0,0.00019726,20]
[421370565,1777515032000,-503.0,0.00019726,20]
[421370564,1777515032000,-503.0,0.00019726,20]
[421370563,1777515032000,-503.0,0.00019726,20]
[421370567,1777515032000,-401.84924682,0.00019726,20]
[421370579,1777515032000,-666.88193399,0.00019898,2]
[421370560,1777515032000,-503.0,0.00019726,20]
[421370562,1777515032000,-503.0,0.00019726,20]
[421370550,1777515032000,-454.96968946,0.00019726,20]
[421370554,1777515032000,-503.0,0.00019726,20]
[421370552,1777515032000,-503.0,0.00019726,20]
[421370555,1777515032000,-503.0,0.00019726,20]
[421370553,1777515032000,-503.0,0.00019726,20]
[421370569,1777515032000,-503.0,0.00019726,20]
[421370570,1777515032000,-503.0,0.00019726,20]
[421370572,1777515032000,-503.0,0.00019726,20]
[421370571,1777515032000,-503.0,0.00019726,20]
[421370561,1777515032000,-503.0,0.00019726,20]
[421370698,1777515038000,-500.0,0.00019899,2]
[421370675,1777515038000,-1882.33472525,0.00019899,2]
[421370691,1777515038000,-1882.33472525,0.00019899,2]
[421370696,1777515038000,-500.0,0.00019899,2]
[421370694,1777515038000,-174.81908032,0.00019899,2]
[421370692,1777515038000,-1882.33472525,0.00019899,2]
[421370682,1777515038000,-1882.33472525,0.00019899,2]
[421370685,1777515038000,-1882.33472525,0.00019899,2]
[421370683,1777515038000,-1882.33472525,0.00019899,2]
[421370678,1777515038000,-1882.33472525,0.00019899,2]
[421370667,1777515038000,-1882.33472525,0.00019899,2]
[421370658,1777515038000,-1882.33472525,0.00019899,2]
[421370660,1777515038000,-154.3822387,0.00019899,2]
[421370664,1777515038000,-246.56353028,0.00019899,2]
[421370669,1777515038000,-1207.31285256,0.00019899,2]
[421370656,1777515038000,-357.77801492,0.00019899,2]
[421370654,1777515038000,-2228.70463028,0.00019899,2]
[421370652,1777515038000,-2312.14436791,0.00019898,2]
[421370662,1777515038000,-1635.77119497,0.00019899,2]
[421370689,1777515038000,-1882.33472525,0.00019899,2]
[421370673,1777515038000,-675.02187269,0.00019899,2]
[421370700,1777515038000,-500.0,0.00019899,2]
[421370687,1777515038000,-1882.33472525,0.00019899,2]
[421370712,1777515038000,-500.0,0.00019899,2]
[421370740,1777515038000,-1882.33472525,0.00019899,2]
[421370742,1777515038000,-186.79272344,0.000199,2]
[421370738,1777515038000,-500.0,0.00019899,2]
[421370736,1777515038000,-1882.33472525,0.00019899,2]
[421370734,1777515038000,-500.0,0.00019899,2]
[421370732,1777515038000,-156.03899612,0.00019899,2]
[421370730,1777515038000,-500.0,0.00019899,2]
[421370701,1777515038000,-500.0,0.00019899,2]
[421370723,1777515038000,-159.01895113,0.00019899,2]
[421370721,1777515038000,-1882.33472525,0.00019899,2]
[421370727,1777515038000,-500.0,0.00019899,2]
[421370707,1777515038000,-500.0,0.00019899,2]
[421370716,1777515038000,-1882.33472525,0.00019899,2]
[421370725,1777515038000,-500.0,0.00019899,2]
[421370718,1777515038000,-500.0,0.00019899,2]
[421370705,1777515038000,-500.0,0.00019899,2]
[421370714,1777515038000,-500.0,0.00019899,2]
[421370719,1777515038000,-1882.33472525,0.00019899,2]
[421370744,1777515038000,-124129.55955924,0.000199,2]
[421370710,1777515038000,-500.0,0.00019899,2]
[421370708,1777515038000,-500.0,0.00019899,2]
[421370703,1777515038000,-500.0,0.00019899,2]
[421370924,1777515043000,-3678.4336492,0.000199,2]
[421370952,1777515046000,-989.92404718,0.00019899,2]
[421370951,1777515046000,-36023.12624853,0.000199,2]
[421370953,1777515072000,300.0,0.00021,120]
[421372998,1777516256000,-680.0,6.849e-05,2]
[421373017,1777516257000,-31.10602821,0.00011777,2]
[421373012,1777516257000,-150.0,7.777e-05,2]
[421373015,1777516257000,-177.0,9.777e-05,2]
[421377398,1777516299000,-172.89397179,0.00011777,2]
[421377496,1777516323000,-587.23003007,0.000119,5]
[421377501,1777517158000,-150.0,0.00024875,2]
[421377529,1777517432000,-150.0,9.999e-05,2]
[421377528,1777517432000,-300.0,9.999e-05,2]
[421377530,1777517432000,-2493.40558022,0.0001,10]
[421377531,1777517432000,-424.39333744,0.0001,10]
[421377527,1777517432000,-560.0,9.999e-05,2]
[421377555,1777517438000,-429.98946099,0.0001,10]
[421377556,1777517438000,-311.8854981,0.0001,10]